Cogmind - Beta 15 @@@ ROGUE MODE // 2025.10.11 @ 19:59:58 Player: weedlord420 Result: Destroyed by H-61 Shepherd with Heavy Assault Cannon Performance ------------- Evolutions (3) 1500 Regions Visited (9) 1800 Robots Destroyed (167) 835 Value Destroyed (4855) 4855 Prototype IDs (11) 220 Alien Tech Used (0) 0 Bonus (0) 0 TOTAL SCORE: 9210 Bonus ------- None Cogmind --------- Core Integrity 0/700 Matter 184/300 Energy 99/100 System Corruption 6% Temperature Cool (3) Movement Flying (32) Location -7/Factory Parts ------- > --- POWER (1) -------- (None) > --- PROPULSION (3) --- Surge Thruster > --- UTILITY (7) ------ Core Analyzer Hacking Suite > --- WEAPON (2) ------- (None) > --- INVENTORY (5) ---- Heavy Deuterium Engine Drone Bay (2/2) Remote Datajack Plasma Cutter Thunder Hammer Peak State ------------ > --- POWER ------------ Heavy Ion Engine > --- PROPULSION ------- Light Treads Advanced Treads Armored Wheel > --- UTILITY ---------- Large Storage Unit Improved Targeting Computer Core Analyzer Hardened Medium Armor Plating Improved Medium Armor Plating Hacking Suite Hacking Suite > --- WEAPON ----------- Gatling Laser Thunder Hammer > --- INVENTORY -------- Cooled Ion Engine Nuclear Core Improved Deuterium Engine Improved Cooling System Structural Scanner Hacking Suite Hacking Suite Hacking Suite Drone Bay Gatling Laser Improved Assault Rifle Enhanced Autogun Precision Assault Rifle Advanced EMP Blaster Plasma Cutter [Rating: 45] Favorites ----------- Power Ion Engine Engine Ion Engine Propulsion Armored Wheel Treads Light Treads Wheel Armored Wheel Flight Unit Surge Thruster Utility Improved Targeting Computer Device Structural Scanner Storage Large Storage Unit Processor Improved Targeting Computer Hackware Hacking Suite Protection Hardened Medium Armor Plating Weapon Heavy Assault Rifle Energy Gun Spread Laser Energy Cannon Beam Cannon Ballistic Gun Heavy Assault Rifle Launcher Rocket Launcher Special Weapon Plasma Cutter Impact Weapon Thunder Hammer Build | -11 -10 -10 -9 -9 -9 -8 -8 -8 -7 ------- Run | Yrd Mat Min Mat Min Exi Min Mat Sto Fac Slots Evolved 6 | . . . 2 . . . 2 . 2 Power . | . . . . . . . . . . Propulsion 1 | . . . . . . . . . 1 Utility 5 | . . . 2 . . . 2 . 1 Weapon . | . . . . . . . . . . Parts Attached 88 | 6 8 4 24 1 . 2 5 19 19 Power 12 | 1 . . 4 . . . 3 3 1 Engine 12 | 1 . . 4 . . . 3 3 1 Core . | . . . . . . . . . . Reactor . | . . . . . . . . . . Propulsion 21 | 2 2 1 8 . . . . 3 5 Treads 13 | . 2 1 5 . . . . 3 2 Leg . | . . . . . . . . . . Wheel 7 | 2 . . 3 . . . . . 2 Hover . | . . . . . . . . . . Flight 1 | . . . . . . . . . 1 Utility 27 | 1 2 1 4 . . 1 2 7 9 Device 4 | . 1 . 2 . . . 1 . . Storage 3 | 1 1 . . . . . . 1 . Processor 5 | . . 1 2 . . . . . 2 Hackware 5 | . . . . . . . . 2 3 Protection 10 | . . . . . . 1 1 4 4 Artifact . | . . . . . . . . . . Weapon 28 | 2 4 2 8 1 . 1 . 6 4 Energy Gun 8 | . 2 . 1 . . 1 . 2 2 Energy Cannon 2 | . 1 . 1 . . . . . . Ballistic Gun 12 | 2 . 2 4 . . . . 3 1 Ballistic Cannon . | . . . . . . . . . . Launcher 3 | . 1 . . 1 . . . 1 . Special Weapon 1 | . . . 1 . . . . . . Impact Weapon 2 | . . . 1 . . . . . 1 Slashing Weapon . | . . . . . . . . . . Piercing Weapon . | . . . . . . . . . . Special Melee Weapon . | . . . . . . . . . . Unidentified Prototypes 9 | . . . . . . . 1 6 2 Parts Lost 27 | . . 1 6 . . 1 1 1 17 Power 2 | . . . 2 . . . . . . Propulsion 7 | . . . 1 . . . . . 6 Utility 10 | . . . 1 . . 1 1 1 6 Weapon 8 | . . 1 2 . . . . . 5 Highest Loss Streak 9 | . . 1 4 . . 1 1 1 9 To Critical Strikes . | . . . . . . . . . . Average Backups 13 | 3 9 13 12 14 14 13 14 14 14 Power 1 | . 1 2 1 . . . . . 2 Propulsion 2 | 2 2 2 2 3 3 3 2 2 . Utility 4 | . 1 3 3 6 6 5 6 7 6 Weapon 4 | . 3 5 4 4 4 4 4 4 4 Tool/Special . | . . . . . . . . . . Unused Backups 10 | . . . 1 . . . . 2 7 Power 4 | . . . . . . . . . 4 Propulsion . | . . . . . . . . . . Utility 3 | . . . . . . . . 1 2 Weapon 2 | . . . 1 . . . . 1 . Tool/Special 1 | . . . . . . . . . 1 Average Slot Usage (%) 97 | . 97 100 95 100 100 100 92 99 97 Engine 10 | . 14 14 10 11 11 11 8 9 6 Treads 7 | . 11 3 10 . . . 2 5 11 Wheel 14 | . 16 24 11 22 22 22 15 12 9 Device 7 | . 11 6 9 11 11 4 13 7 1 Storage 10 | . 14 14 11 11 11 11 9 9 6 Processor 14 | . . 7 19 22 22 22 12 9 13 Hackware 5 | . . . . . . . . 15 15 Protection 5 | . . . . . . 6 11 12 13 Energy Gun 6 | . 12 7 3 . . 13 18 7 5 Ballistic Gun 11 | . 9 20 16 21 22 5 . 8 6 Peak Build Rating 45 | 6 9 12 19 18 17 18 24 32 45 Average Rating 21 | 3 7 11 16 17 17 17 20 28 39 On Entrance 15 | . 6 9 12 18 17 17 18 22 31 Naked Turns . | . . . . . . . . . . Heaviest Build 104 | 14 31 32 36 33 32 35 45 104 55 Greatest Support 42 | 26 40 26 40 24 24 24 40 42 28 Greatest Overweight (x) 4 | 2 1 1 1 1 1 1 1 4 4 Average Overweight (x) 1 | . . 1 . 1 1 1 . 1 2 Largest Inventory Capacity 25 | 8 15 15 15 15 15 15 15 25 15 Average Capacity 14 | 6 11 15 15 15 15 15 15 16 14 Most Carried 15 | 5 15 15 15 15 15 15 15 15 15 Average Carried 13 | 3 9 14 13 14 15 14 14 14 14 Final Capacity 15 | 8 15 15 15 15 15 15 15 15 5 Final Carried 15 | 4 15 15 15 15 15 15 15 15 5 Class Distribution -------------------- 67% | Mutant 22% | Hacker-Mutant 9% | Scavenger-Mutant Dominant Class ---------------- Mutant | -10/Materials Mutant | -10/Mines Mutant | -9/Materials Mutant | -9/Mines Mutant | -9/Exiles Mutant | -8/Mines Mutant | -8/Materials Hacker-Mutant | -8/Storage Hacker-Mutant | -7/Factory Resources | -11 -10 -10 -9 -9 -9 -8 -8 -8 -7 ----------- Run | Yrd Mat Min Mat Min Exi Min Mat Sto Fac Matter Collected 3964 | 182 448 194 1177 151 . 88 185 829 710 Remotely . | . . . . . . . . . . Salvage Created 5737 | . 652 190 1474 94 . 76 308 1447 1496 Parts 335 | . 38 9 108 8 . 15 18 74 65 Haulers Intercepted 5 | . 1 . 2 . . . 2 . . Recyclers Shooed 3 | . . . 1 . . . . . 2 Parts Field Recycled . | . . . . . . . . . . Retrieved Matter . | . . . . . . . . . . Parts Self-Destructed . | . . . . . . . . . . Prevented . | . . . . . . . . . . Kills | -11 -10 -10 -9 -9 -9 -8 -8 -8 -7 ------- Run | Yrd Mat Min Mat Min Exi Min Mat Sto Fac Combat Hostiles Destroyed 125 | . 12 4 33 3 . 11 7 31 24 Melee 4 | . . . . . . . . . 4 Guns 86 | . 7 4 25 . . 2 7 23 18 Cannons 4 | . 2 . 2 . . . . . . AOE 29 | . 3 . 6 3 . 9 . 8 . Classes Destroyed 15 | . 7 . 3 . . 1 . 2 2 Worker 7 | . 3 . 3 . . . . . 1 Builder 1 | . . . . . . . . 1 . Tunneler 1 | . . . 1 . . . . . . Hauler 5 | . 1 . 2 . . . 2 . . Recycler 12 | . 1 . 2 1 . . . 1 7 Operator 8 | . 3 . 4 . . . . 1 . Watcher 8 | . 2 . 3 . . . . 2 1 Swarmer 39 | . 5 . 9 3 . 10 . 6 6 Cutter 1 | . . . . . . . . . 1 Grunt 50 | . 7 4 14 . . . 6 12 7 Brawler 1 | . . . 1 . . . . . . Duelist 2 | . . . . . . . . 1 1 Sentry 24 | . . . 9 . . . 1 12 2 Hunter 4 | . . . . . . 1 . . 3 Programmer 4 | . . . . . . . . . 4 Best Kill Streak 6 | . 5 2 6 3 . 4 4 5 6 Combat Bots Only 4 | . 3 2 4 3 . 4 4 4 4 Max Kills in Single Turn 4 | . 3 1 4 1 . 2 1 2 1 Gunslinging 1 | . . . 1 . . . . . . Exploded 3 | . 3 . 3 1 . 2 . 2 . Melee 1 | . . . . . . . . . 1 Uniques/NPCs Destroyed . | . . . . . . . . . . Combat | -11 -10 -10 -9 -9 -9 -8 -8 -8 -7 -------- Run | Yrd Mat Min Mat Min Exi Min Mat Sto Fac Hostile Shots Fired 655 | . 36 27 141 5 . 21 26 96 303 Missed 208 | . 10 3 35 1 . 3 5 29 122 Hits 447 | . 26 24 106 4 . 18 21 67 181 Melee 13 | . . . . . . . . 1 12 Projectile 434 | . 26 24 106 4 . 18 21 66 169 AOE 2 | . . . . . . . . . 2 Critical Strikes 21 | . 1 1 2 . . . 1 6 10 Part Disruptions 1 | . . . . . . . . . 1 Damage Taken 6719 | . 305 320 1244 47 . 195 364 1086 3158 Core 1265 | . 43 81 251 13 . 56 30 76 715 Absorbed by Shields 100 | . . . 91 . . 9 . . . Regen/Repaired (Parts) 281 | . . . . . . . . 281 . Core Remaining (%) 62 | 100 . 50 . . . 20 . 80 . Volleys Fired 372 | . 57 16 110 6 . 14 25 76 68 Largest 2 | . 2 2 2 2 . 2 2 2 2 Hottest 130 | . 80 80 91 46 . 88 130 130 130 Shots Fired 681 | . 105 32 207 8 . 16 50 132 131 Gun 606 | . 82 32 181 4 . 9 50 119 129 Cannon 36 | . 19 . 17 . . . . . . Launcher 37 | . 4 . 7 4 . 7 . 13 2 Special 2 | . . . 2 . . . . . . Kinetic 367 | . 49 18 157 4 . 2 . 70 67 Thermal 230 | . 19 . 43 . . 7 50 49 62 Explosive 22 | . 4 . 7 4 . 7 . . . Electromagnetic 62 | . 33 14 . . . . . 13 2 Robot Hit Streak 38 | . 11 6 38 6 . 20 24 20 21 Robot Miss Streak 7 | . 4 2 5 . . 4 6 7 7 Penetration Max . | . . . . . . . . . . Secondary Targets 8 | . . 1 2 . . . . 4 1 Max Gunslinging Chain 1 | . . 1 1 . . . . 1 1 Shots Hit Robots 471 | . 52 19 125 2 . 8 44 102 119 Core Hits 427 | . 30 8 93 4 . 19 68 118 87 Critical Kills 1 | . . . . . . . . 1 . Critical Parts Destroyed 4 | . . . . . . . . . 4 Critical Strikes 5 | . . . . . . . . 1 4 Destroy 1 | . . . . . . . . 1 . Smash 4 | . . . . . . . . . 4 Melee Attacks 34 | . . . 2 . . . . 5 27 Impact 34 | . . . 2 . . . . 5 27 Slashing . | . . . . . . . . . . Piercing . | . . . . . . . . . . Sneak Attacks . | . . . . . . . . . . Combat Hostiles . | . . . . . . . . . . Follow-up Attacks . | . . . . . . . . . . Damage Inflicted 10793 | . 1044 273 2689 160 . 542 726 2058 3301 Guns 7438 | . 595 273 1946 17 . 120 726 1575 2186 Cannons 335 | . 192 . 143 . . . . . . Explosions 2139 | . 257 . 600 143 . 422 . 483 234 Melee 881 | . . . . . . . . . 881 Ramming . | . . . . . . . . . . Kinetic 3636 | . 340 163 1496 17 . 13 . 864 743 Thermal 3995 | . 335 . 593 . . 107 726 791 1443 Explosive 1279 | . 114 . 600 143 . 422 . . . Electromagnetic 1002 | . 255 110 . . . . . 403 234 Impact 881 | . . . . . . . . . 881 Slashing . | . . . . . . . . . . Piercing . | . . . . . . . . . . Highest Corruption 6 | . . . . . . . . . 6 Average Corruption 2 | . . . . . . . . . 2 Corruption Purged . | . . . . . . . . . . Corruption Blocked . | . . . . . . . . . . Effects 30 | . . . . . . . . . 30 Message Errors 7 | . . . . . . . . . 7 Matter Fused 11 | . . . . . . . . . 11 Heat Flow Errors 1 | . . . . . . . . . 1 Energy Discharges 5 | . . . . . . . . . 5 Data Loss (minor) 3 | . . . . . . . . . 3 Misfires 1 | . . . . . . . . . 1 Alerts 2 | . . . . . . . . . 2 Overload Shots . | . . . . . . . . . . Overflow Damage 417 | . 33 . 41 . . 24 . 6 313 Projectiles . | . . . . . . . . . . Explosions 104 | . 33 . 41 . . 24 . 6 . Melee 313 | . . . . . . . . . 313 Knockbacks 2 | . . . . . . . . . 2 Impact 2 | . . . . . . . . . 2 Kinetic . | . . . . . . . . . . Secondary . | . . . . . . . . . . Self-Inflicted Damage 334 | . 55 . 195 19 . 9 36 13 7 Shots 16 | . 4 . 7 1 . 1 1 1 1 Rammed . | . . . . . . . . . . Targets Rammed . | . . . . . . . . . . Kicked . | . . . . . . . . . . Crushed . | . . . . . . . . . . Highest Temperature 378 | . 112 204 206 . . 88 252 168 378 Average Temperature 66 | . 33 68 48 . . 33 60 47 102 Received Heat Transfer 1624 | . 75 198 328 . . . 171 549 303 Effects 1 | . . . . . . . . . 1 Energy Bleed 1 | . . . . . . . . . 1 Siege Activations . | . . . . . . . . . . Martial Activations . | . . . . . . . . . . Shielding Activations . | . . . . . . . . . . Robots Disrupted . | . . . . . . . . . . Combat Hostiles . | . . . . . . . . . . Robots Corrupted 2 | . . . . . . . . . 2 Combat Hostiles 2 | . . . . . . . . . 2 Parts Fried 10 | . 2 . . . . . . 2 6 Impact Corruptions 10 | . . . . . . . . . 10 Robots Melted . | . . . . . . . . . . Combat Hostiles . | . . . . . . . . . . Parts Melted 8 | . 2 . 1 . . . . . 5 Heat Transferred 6275 | . 607 . 809 . . 135 935 985 2804 Parts Sabotaged . | . . . . . . . . . . Parts Stolen . | . . . . . . . . . . Parts Stripped . | . . . . . . . . . . Power Chain Reactions 6 | . 4 . . . . . . 2 . Alert | -11 -10 -10 -9 -9 -9 -8 -8 -8 -7 ------- Run | Yrd Mat Min Mat Min Exi Min Mat Sto Fac Maximum Alert Level 1 | . . . 1 . . . . . 1 Low Security (%) 86 | 100 100 100 71 100 . 100 100 100 73 Level 1 13 | . . . 28 . . . . . 26 Level 2 . | . . . . . . . . . . Level 3 . | . . . . . . . . . . Level 4 . | . . . . . . . . . . Level 5 . | . . . . . . . . . . High Security . | . . . . . . . . . . Max Security . | . . . . . . . . . . Peak Influence 376 | . 115 76 376 142 . 132 99 179 234 Initial 142 | . . 11 . 142 . . 28 41 54 Average 96 | . 54 10 165 71 . 47 46 77 110 Influence Increases 4316 | . 462 115 1229 140 . 328 254 925 863 Destroy 0b10 Robot/C 2500 | . 240 80 660 60 . 220 140 620 480 Destroy 0b10 Robot/NC 195 | . 45 . 65 5 . . 10 25 45 Destroy Leader 656 | . 66 20 180 10 . 40 34 194 112 Trap Triggered on 0b10 30 | . . . 20 . . . 10 . . Successful Hack 128 | . 30 . 31 . . . 15 19 33 Select Force Hacks 30 | . . . 30 . . . . . . Disable Machine 330 | . 30 15 150 30 . 15 15 45 30 Destroy Structure 207 | . 36 . 48 35 . 53 . 22 13 Partial Spotted 15 | . . . 15 . . . . . . Lose Combat Pursuer 225 | . 15 . 30 . . . 30 . 150 Influence Decreases 4313 | . 432 145 863 506 . 254 229 903 981 Entered New Map 414 | . . 19 . 224 . . 46 58 67 Time Decay 2951 | . 432 126 648 282 . 244 173 457 589 Lost Part 210 | . . . 55 . . 10 10 10 125 Lost Ally 11 | . . . 11 . . . . . . Purge Threat 727 | . . . 149 . . . . 378 200 Squads Dispatched 25 | . 4 . 4 . . . 3 4 10 Investigation 9 | . 2 . 2 . . . 1 1 3 Extermination 4 | . . . . . . . . . 4 Reinforcement 11 | . 2 . 2 . . . 2 2 3 Assault . | . . . . . . . . . . Garrison 1 | . . . . . . . . 1 . Intercept . | . . . . . . . . . . Searches Triggered . | . . . . . . . . . . Construction Impeded 1 | . . . . . . . . 1 . Haulers Reinforced . | . . . . . . . . . . Active Scanning Responses . | . . . . . . . . . . Cargo Convoy Interrupts 1 | . . . . . . . . . 1 Stealth | -11 -10 -10 -9 -9 -9 -8 -8 -8 -7 --------- Run | Yrd Mat Min Mat Min Exi Min Mat Sto Fac Distress Signals 13 | . 3 . 4 . . . 2 3 1 Communications Jammed . | . . . . . . . . . . Distress Signals . | . . . . . . . . . . Times Spotted 190 | . 25 4 55 3 . 7 15 35 46 Peak Tracking Total 8 | . 6 2 5 3 . 3 8 3 8 Tactical Retreats 9 | . 1 . 2 . . . 1 . 5 Traps | -11 -10 -10 -9 -9 -9 -8 -8 -8 -7 ------- Run | Yrd Mat Min Mat Min Exi Min Mat Sto Fac Traps Triggered 15 | . 3 . . . . . 1 6 5 Indirectly 5 | . 1 . . . . . . 4 . Trap Hack Attempts . | . . . . . . . . . . Triggered . | . . . . . . . . . . Disarmed . | . . . . . . . . . . Reprogrammed 1 | . . . 1 . . . . . . Reused 3 | . . . 2 . . . 1 . . Traps Extracted . | . . . . . . . . . . Installed 3 | . . . 2 . . . 1 . . Triggered 3 | . . . 2 . . . 1 . . Most Traps Carried 3 | . . 3 3 1 1 1 1 . . Machines | -11 -10 -10 -9 -9 -9 -8 -8 -8 -7 ---------- Run | Yrd Mat Min Mat Min Exi Min Mat Sto Fac Machines Disabled 22 | . 2 1 10 2 . 1 1 3 2 Max in Single Turn 2 | . 1 1 2 1 . 1 1 1 1 Garrison Access 2 | . . . . . . . . 1 1 Machines Repaired . | . . . . . . . . . . Machines Dismantled . | . . . . . . . . . . Machines Sabotaged . | . . . . . . . . . . Overloaded Fab Kills . | . . . . . . . . . . Hacking | -11 -10 -10 -9 -9 -9 -8 -8 -8 -7 --------- Run | Yrd Mat Min Mat Min Exi Min Mat Sto Fac Machines Accessed 40 | . 6 . 11 . 1 . 2 11 9 Terminals 29 | . 6 . 9 . . . 1 8 5 Fabricators 2 | . . . . . . . . . 2 Repair Stations 3 | . . . . . . . . 2 1 Recycling Units 1 | . . . . . . . 1 . . Scanalyzers 2 | . . . 2 . . . . . . Garrison Access 2 | . . . . . . . . 1 1 Total Hacks 153 | . 18 . 35 . 23 . 9 36 32 Successful 94 | . 7 . 20 . 23 . 5 22 17 Failed 59 | . 11 . 15 . . . 4 14 15 Catastrophic 5 | . 1 . 1 . . . 1 1 1 Database Lockouts . | . . . . . . . . . . Manual 89 | . 15 . 27 . . . 7 22 18 Terminals 106 | . 18 . 32 . . . 6 30 20 Fabricators 6 | . . . . . . . . . 6 Repair Stations 7 | . . . . . . . . 4 3 Recycling Units 3 | . . . . . . . 3 . . Scanalyzers 3 | . . . 3 . . . . . . Garrison Access 5 | . . . . . . . . 2 3 Terminal Hacks 52 | . 2 . 7 . 23 . 1 12 7 Record 23 | . . . . . 23 . . . . Part Schematic 2 | . . . . . . . . 1 1 Robot Analysis 8 | . . . 2 . . . . 5 1 Open Door 1 | . . . . . . . . 1 . Branch Access Points 1 | . . . . . . . . . 1 Terminal Index 5 | . 1 . 1 . . . 1 1 1 Alert Level 1 | . . . . . . . . 1 . Unreport Threat 7 | . . . 2 . . . . 3 2 Locate Traps 3 | . 1 . 1 . . . . . 1 Reprogram Traps 1 | . . . 1 . . . . . . Fabricator Hacks 3 | . . . . . . . . . 3 Network Status 1 | . . . . . . . . . 1 Load Schematic 1 | . . . . . . . . . 1 Build 1 | . . . . . . . . . 1 Repair Station Hacks 4 | . . . . . . . . 3 1 Scan Component 3 | . . . . . . . . 2 1 Repair 1 | . . . . . . . . 1 . Recycling Unit Hacks 1 | . . . . . . . 1 . . Retrieve Components 1 | . . . . . . . 1 . . Scanalyzer 1 | . . . 1 . . . . . . Insert Component 1 | . . . 1 . . . . . . Garrison Access Hacks 2 | . . . . . . . . 1 1 Seal Access 2 | . . . . . . . . 1 1 Unauthorized Hacks 31 | . 5 . 12 . . . 3 6 5 Terminals 27 | . 5 . 11 . . . 2 6 3 Track 3 | . . . . . . . 1 1 1 Assimilate 9 | . 3 . 6 . . . . . . Botnet 10 | . 1 . 4 . . . . 4 1 Operators 5 | . 1 . 1 . . . 1 1 1 Fabricators 1 | . . . . . . . . . 1 Recompile 1 | . . . . . . . . . 1 Repair Stations . | . . . . . . . . . . Recycling Units 1 | . . . . . . . 1 . . Reject 1 | . . . . . . . 1 . . Scanalyzers 1 | . . . 1 . . . . . . Extract 1 | . . . 1 . . . . . . Garrison Access 1 | . . . . . . . . . 1 Watchers 1 | . . . . . . . . . 1 Data Cores Recovered . | . . . . . . . . . . Used . | . . . . . . . . . . Hacking Detections 32 | . 5 . 7 . . . 2 9 9 Full Trace Events 3 | . . . 1 . . . . . 2 Feedback Events . | . . . . . . . . . . Feedback Blocked . | . . . . . . . . . . Robot Schematics Acquired . | . . . . . . . . . . Robots Built . | . . . . . . . . . . Authchips . | . . . . . . . . . . Time . | . . . . . . . . . . Total Robot Build Rating . | . . . . . . . . . . Part Schematics Acquired 3 | . . . 1 . . . . 1 1 Parts Built 2 | . . . . . . . . . 2 Authchips . | . . . . . . . . . . Time 84 | . . . . . . . . . 84 Total Part Build Rating 8 | . . . . . . . . . 8 Parts Repaired 1 | . . . . . . . . 1 . Time 26 | . . . . . . . . 26 . Parts Recycled . | . . . . . . . . . . Recycled Matter . | . . . . . . . . . . Retrieved Matter . | . . . . . . . . . . Retrieved Components 3 | . . . . . . . 3 . . Parts Scanalyzed . | . . . . . . . . . . Part Schematics Acquired . | . . . . . . . . . . Parts Damaged . | . . . . . . . . . . Bothacking | -11 -10 -10 -9 -9 -9 -8 -8 -8 -7 ------------ Run | Yrd Mat Min Mat Min Exi Min Mat Sto Fac Used RIF Installer . | . . . . . . . . . . Robots Hacked . | . . . . . . . . . . Non-combat . | . . . . . . . . . . Combat . | . . . . . . . . . . Robot Hacks Applied . | . . . . . . . . . . Relay Couplers Released . | . . . . . . . . . . Fabnet Peak Effective % . | . . . . . . . . . . Robots Rewired . | . . . . . . . . . . Allies Hacked . | . . . . . . . . . . Hacks Repelled . | . . . . . . . . . . Allies | -11 -10 -10 -9 -9 -9 -8 -8 -8 -7 -------- Run | Yrd Mat Min Mat Min Exi Min Mat Sto Fac Total Allies 6 | . 2 . 3 1 . . . . . Largest Group 1 | . 1 1 1 1 1 . . . . Highest-Rated Group 31 | . 10 10 10 31 31 . . . . Highest-Rated Ally 31 | . 10 10 10 31 31 . . . . Total Orders . | . . . . . . . . . . Ally Attacks . | . . . . . . . . . . Total Damage . | . . . . . . . . . . Kills . | . . . . . . . . . . Allies Corrupted . | . . . . . . . . . . Allies Melted . | . . . . . . . . . . Intel | -11 -10 -10 -9 -9 -9 -8 -8 -8 -7 ------- Run | Yrd Mat Min Mat Min Exi Min Mat Sto Fac Active Infowar (turns) 4866 | . 996 325 1122 557 480 344 353 250 439 Structural 4866 | . 996 325 1122 557 480 344 353 250 439 Seismic 65 | . . . 65 . . . . . . Robot Analysis Total 8 | . . . 2 . . . . 5 1 Derelict Logs Recovered 4 | . . 2 . 2 . . . . . Drone Launches . | . . . . . . . . . . Drone Recoveries . | . . . . . . . . . . Exploration | -11 -10 -10 -9 -9 -9 -8 -8 -8 -7 ------------- Run | Yrd Mat Min Mat Min Exi Min Mat Sto Fac Turns Passed 10848 | 59 1233 725 2749 643 480 914 419 1276 2350 Spaces Moved 6883 | 50 799 528 1531 546 458 741 249 653 1328 Core 28 | 17 . . . . . . . . 11 Treads 957 | . 197 23 615 . . . 14 63 45 Legs . | . . . . . . . . . . Wheels 5831 | 33 602 505 916 546 458 741 235 590 1205 Hover . | . . . . . . . . . . Flight 67 | . . . . . . . . . 67 Fastest Speed 32 | 50 90 105 105 105 105 105 105 105 32 Average Speed 119 | 82 116 111 128 105 105 105 108 127 131 Slowest Speed 320 | 150 160 240 240 105 105 105 160 240 320 Overloaded Moves 45 | . . . . . . . . . 45 Propulsion Burnouts . | . . . . . . . . . . Robots Hopped 4 | . . . 2 . . . . . 2 Potential Cave-ins . | . . . . . . . . . . Cave-ins Triggered . | . . . . . . . . . . Exploration Rate (%) 70 | 3 94 93 90 99 88 99 28 86 29 Regions Visited 9 Branch Regions 5 Pre-discovered Areas 4 | . . 1 . 2 1 . . . . Known Exits Taken 1 | . . . . . . 1 . . . Unknown Exits Taken 8 | 1 1 1 1 1 1 . 1 1 . Scrap Searched 5 | . . 1 . 2 . 2 . . . Spaces Dug 64 | . 25 . 30 . . . . . 9 Terrain Destroyed 226 | . 33 . 48 42 . 77 . 17 9 Melee 11 | . . . 2 . . . . . 9 Projectile . | . . . . . . . . . . AOE 215 | . 33 . 46 42 . 77 . 17 . Terrain Rammed . | . . . . . . . . . . Walls Destroyed . | . . . . . . . . . . Machines Disabled . | . . . . . . . . . . Actions | -11 -10 -10 -9 -9 -9 -8 -8 -8 -7 --------- Run | Yrd Mat Min Mat Min Exi Min Mat Sto Fac Total 8754 | 66 988 632 2106 607 457 857 348 945 1748 Wait 1093 | 3 92 77 365 49 . 94 46 127 240 Move 6866 | 49 798 527 1526 545 457 740 248 652 1324 Hop 4 | . . . 2 . . . . . 2 Pick Up 82 | 8 14 3 20 2 . 1 8 10 16 Fast Attach 16 | 2 . . . . . . 2 4 8 Attach 32 | 4 1 1 8 . . 1 3 1 13 Detach 1 | . . . . . . . . . 1 Swap 186 | . 23 6 56 3 . 7 7 53 31 Drop 65 | . 3 2 15 2 . . 8 17 18 Fire 372 | . 57 16 110 6 . 14 25 76 68 Melee 34 | . . . 2 . . . . 5 27 Ram . | . . . . . . . . . . Kick . | . . . . . . . . . . Crush . | . . . . . . . . . . Escape Stasis . | . . . . . . . . . . Rewire . | . . . . . . . . . . Trap 3 | . . . 2 . . . 1 . . Miscellaneous . | . . . . . . . . . . Route ------- -11/Scrapyard -10/Materials (discovered 5 exits: *Mat x3 / [*Min x2]) -10/Mines (discovered 2 exits: *Mat x2) -9/Materials (discovered 4 exits: *Mat x3 / [*Min]) -9/Mines (discovered 4 exits: *Mat x2 / *Exi / [*Zio]) -9/Exiles -8/Mines (discovered 2 exits: *Mat x2) -8/Materials -8/Storage -7/Factory (discovered 2 exits: *Low x2) History --------- Turn | Location | Event 9 | -11/Scrapyard | Discovered new exit (range 14) 60 | -11/Scrapyard | Entered Materials 318 | -10/Materials | Build established: Mutant 649 | -10/Materials | Discovered new exit (range 8) 702 | -10/Materials | Discovered new exit (range 8) 1093 | -10/Materials | Discovered new exit (range 4) 1162 | -10/Materials | Discovered new exit (range 9) 1278 | -10/Materials | Discovered new exit (range 16) 1293 | -10/Materials | Entered Mines 1293 | -10/Mines | Accompanied by 1 ally 1323 | -10/Mines | Met a Derelict bent on vengeance 1350 | -10/Mines | Discovered new exit (range 10) 1387 | -10/Mines | Learned location of Recycling (-8) 1398 | -10/Mines | Learned location of 1 exit from Materials 1810 | -10/Mines | Found a hidden stash of uninstalled traps 1899 | -10/Mines | Discovered new exit (range 15) 2018 | -10/Mines | Entered Materials 2018 | -9/Materials | Accompanied by 1 ally 2018 | -9/Materials | Evolved 2 slots: Utility x2 2019 | -9/Materials | Identified exit to Materials 2138 | -9/Materials | Lost 4 parts (1p1n2w) 2618 | -9/Materials | Discovered exit to Materials (range 5) 2774 | -9/Materials | Discovered new exit (range 14) 2963 | -9/Materials | Core integrity fell below 50% 3045 | -9/Materials | Discovered exit to Materials (range 12) 4767 | -9/Materials | Entered Mines 4826 | -9/Mines | Discovered exit to Materials (range 10) 4996 | -9/Mines | Received a Rocket Launcher from a helpful Derelict 5033 | -9/Mines | Discovered exit to Materials (range 15) 5071 | -9/Mines | Learned location of Zion (-7) 5082 | -9/Mines | Found a Scrap Suit stashed away for nefarious purposes 5139 | -9/Mines | Received a Mining Laser from a helpful Derelict 5353 | -9/Mines | Learned location of Storage (-8) 5370 | -9/Mines | A Derelict revealed a hidden shortcut to a safe place 5404 | -9/Mines | Deemed a non-threat by the Exiles lab entrance 5404 | -9/Mines | Discovered new exit (range 5) 5410 | -9/Mines | Entered Exiles 5410 | -9/Exiles | Accompanied by 1 ally 5438 | -9/Exiles | Met 8R-AWN 5456 | -9/Exiles | Met EX-HEX 5496 | -9/Exiles | Met EX-DEC 5527 | -9/Exiles | Visited The Gauntlet 5676 | -9/Exiles | Met EX-BIN 5805 | -9/Exiles | Discovered new exit (range 14) 5890 | -9/Exiles | Entered Mines 6159 | -8/Mines | Discovered exit to Materials (range 10) 6173 | -8/Mines | Discovered exit to Materials (range 13) 6804 | -8/Mines | Entered Materials 6804 | -8/Materials | Evolved 2 slots: Utility x2 7214 | -8/Materials | Discovered new exit (range 8) 7223 | -8/Materials | Entered Storage 7986 | -8/Storage | Build established: Hacker-Mutant 8110 | -8/Storage | Repaired Lrg. Storage Unit? 8173 | -8/Storage | Garrison activated, responded to threat 8450 | -8/Storage | Discovered new exit (range 16) 8499 | -8/Storage | Entered Factory 8499 | -7/Factory | Evolved 2 slots: Propulsion x1, Utility x1 9952 | -7/Factory | Fabricated Powered Armor? 10056 | -7/Factory | Cargo convoy interrupted 10355 | -7/Factory | Identified exit to Lower Caves 10462 | -7/Factory | Build established: Scavenger-Mutant 10816 | -7/Factory | Core integrity fell below 50% 10833 | -7/Factory | Core integrity fell below 20% 10849 | -7/Factory | Destroyed by H-61 Shepherd with Heavy Assault Cannon Last Messages --------------- 10816_ The unstable cave ceiling collapses. 10816_ Imp. Assault Rifle crushed. 10816_ Imp. Deuterium Engine severed. 10817_ Hacking Suite destroyed. 10817_ Dropped Imp. Deuterium Engine. 10818_ Dropped Powered Armor. 10818_ Dropped Lrg. Storage Unit. 10819_ H6, KZ21DQ2SCHHOD:Q37F|TO2QP>HRAQEO 10819_ K-01 Serf collects debris. 10819_ Hacking Suite severed. 10819_ C-17 Slicer destroyed. 10820_ Acquired Surge Thruster. 10822_ X-57 Shotgunner IFF system glitched. 10822_ X-57 Shotgunner destroyed. 10827_ ALERT: Suspicious intruders detected, dispatching Cutter reinforcements to area. 10843_ Imp. Targeting Computer destroyed. 10843_ Knocked back. 10849_ Penetrated by Slug. Map ----- +----------------------------------------------------+ | | | | | | | | | | | | | | | | | | | | | | | | | | | | | | | ?????????????????????????????????????????????????? | | ?????????????????????????????????????????????????? | | ?????????????????????????????????????????????????? | | ?????????????????????????????????????????????????? | | ?????????????????????????????????????????????????? | | ?????????????????????????????????????????????????? | | ?????????????????????????????????????????????????? | | ?????????????????????????#######?????????????????? | | ?????????????????????????# % #?????????????????? | | ????????????????##+####### #?????????????????? | | ??????????####### @ > +?????????????????? | | ??????? ### [ #?????????????????? | | ??] ????####### #?? H #?????????????????? | | ??] ??????????# ##+#####/###?????????????????? | | ?? ??????????# # #??????????????????? | | ?? #?????????# # % #??????????????????? | | ?? #?????????# # """" = #??????????????????? | | ??# #?????????# + """" #??????????????????? | | ??? ??????????# # """" #??????????????????? | | ??? ??????????# # """" #??????????????????? | | ??? ??????????# # #??????????????????? | | ??? > ??????????# # = #??????????????????? | | ??? ??????????# ###########??????????????????? | | ??? ??????????# ## #??????????????????? | | ???# #?#######?## ## """ #??????????????????? | | ???# #?# !#?# # """ #??????????????????? | | #### ### ### # """ "" #??????????????????? | | T + """#??????????????????? | | ######## ### # """ S"#??????????????????? | | #??# #?# # """ """#??????????????????? | | #??###+###?### ### """ """#??????????????????? | | #????????????# #?# ???????????????????? | | #????????????# #?#########???????????????????? | | ? #????????????# #?????????????????????????????? | | ? #????????????# #?????????????????????????????? | +----------------------------------------------------+ Best States ------------- Heat Dissipation 53 Energy Generation 16 Energy Capacity 290 Matter Stores 300 Matter Capacity 300 Sight Range 16 Terrain Scan Density 10 Armor Coverage 800 Evasion (%) 63 Targeting Accuracy 12 Core Analysis 6 Recoil Reduction 2 Offensive Hacking 30 Item Schematics ----------------- Imp. Flight Unit | -9/Materials | Extracted Greatsword | -8/Storage | Hacked Powered Armor | -7/Factory | Hacked Robot Schematics ------------------ None Fabricated ------------ Powered Armor | x2 | -7/Factory Repaired ---------- Lrg. Storage Unit | 19% | -8/Storage Alien Tech Used ----------------- None Achievements -------------- None Challenges ------------ None Game ------ Seed DecoyExpertDatajack Manual? 0 Play Time 01:46:40 Cumulative 108.4 hours Start 2025.10.11 @ 14:19:41 End 2025.10.11 @ 19:59:58 Sessions 1 Manual Loads 0 Difficulty Rogue Special Mode None Game No. 173 Rogue 172 Adventurer 1 Explorer 0 Win Type - Total 1 Types 0/0/0/1/0/0/0/0/0/0 Lore% 60 Gallery% 54 Achievement% 49 Wizard Run 0 Options --------- Layout 1 ASCII 0 Keyboard 0 Movement Mouse Keybinds 0 Fullscreen 2 Font 24/Smallcaps Map View 50x35 Zoom Use 0% Tactical HUD 1 Map Filters NONE Filters NONE Steam 1 RUN: 0a77a280-4b78-404d-a634-b7cdeb1e2405